bitfinex/quotes_ETHUSD_20251017
["timestamp","ask_amount","ask_price","bid_price","bid_amount"]
[1760696723283,0.00120001,3701.7,3701.6,20.14418642]
[1760696723423,0.00120001,3701.7,3701.6,8.07123447]
[1760696723623,0.00120001,3701.7,3701.6,14.80136247]
[1760696723818,0.00120001,3701.7,3701.6,14.06288847]
[1760696724025,0.00120001,3701.7,3701.6,11.03310247]
[1760696724243,0.00120001,3701.7,3701.6,13.77373447]
[1760696724450,0.00120001,3701.7,3701.6,11.84324547]
[1760696724654,0.00120001,3701.7,3701.6,7.68798947]
[1760696724827,0.00120001,3701.7,3701.6,7.21848047]
[1760696725025,0.00120001,3701.7,3701.6,10.22568047]
[1760696725470,0.00120001,3701.7,3701.6,10.16056547]
[1760696725779,0.00120001,3701.7,3701.6,12.44409447]
[1760696725982,0.00120001,3701.7,3701.6,9.44409447]
[1760696726169,0.00120001,3701.7,3701.6,8.06213447]
[1760696726572,0.00120001,3701.7,3701.6,13.19133847]
[1760696726777,0.00120001,3701.7,3701.6,10.76497047]
[1760696726984,0.00120001,3701.7,3701.6,10.77007047]
[1760696727155,0.00120001,3701.7,3701.6,8.06723447]
[1760696727358,0.00120001,3701.7,3701.6,15.89754847]
[1760696727583,0.00120001,3701.7,3701.6,2.70153447]
[1760696727787,0.00120001,3701.7,3701.6,2.72480626]
[1760696727954,0.00120001,3701.7,3699.7,0.0051]
[1760696728152,0.00120001,3701.7,3699.4,2.70314104]
[1760696728153,0.46610001,3701.7,3699.4,2.70314104]
[1760696728398,0.46610001,3701.7,3699.9,2.70276258]
[1760696728399,0.4649,3701.6,3699.9,2.70276258]
[1760696728558,0.1344,3701.4,3700.7,0.1344]
[1760696728890,0.00120001,3701.7,3700.8,2.70206108]
[1760696728891,0.1344,3701.1,3700.8,2.70206108]
[1760696729095,0.1344,3701.4,3700.8,0.1344]
[1760696729255,0.1344,3701.4,3700.8,2.83650539]
[1760696729463,0.1344,3701.4,3700.8,0.1344]
[1760696729665,0.2309,3700.9,3700.1,0.00626698]
[1760696729856,0.4649,3701.3,3700.2,0.00774662]
[1760696730069,0.4649,3701.3,3700.7,2.70218086]
[1760696730260,0.4649,3701.3,3699.7,1.728]
[1760696730494,0.00120001,3701.7,3700.3,0.6336]
[1760696730693,0.00120001,3701.7,3701.2,2.70180038]
[1760696730897,0.00120001,3701.7,3701.6,2.70153447]
[1760696731057,0.00120001,3701.7,3701.6,2.72480686]
[1760696731258,0.00120001,3701.7,3701.6,3.35840686]
[1760696731497,0.00120001,3701.7,3701.6,3.33513447]
[1760696731658,0.00120001,3701.7,3701.6,8.05913447]
[1760696732156,0.00120001,3701.7,3701.6,10.77613447]
[1760696732359,0.00120001,3701.7,3701.6,10.13068347]
[1760696732597,0.00120001,3701.7,3700.1,16.19509523]
[1760696732808,0.00120001,3701.7,3699.6,2.70299491]
[1760696733012,0.00120001,3701.7,3699.4,16.18999523]
[1760696733013,0.4649,3701.6,3699.8,8.055774]
[1760696733314,0.4649,3701.6,3700.8,2.70210536]
[1760696733608,0.4649,3701.6,3700.3,2.995]
[1760696733908,0.4649,3701.6,3699.5,2.851]
[1760696733909,0.002,3701.3,3699.5,2.851]
[1760696734214,0.002,3701.3,3699.7,1.728]
[1760696734503,0.4649,3701.6,3699.7,2.70287757]
[1760696734504,0.4069,3701.6,3699.7,2.70287757]
[1760696734705,0.00120001,3701.7,3699.9,1.728]
[1760696734908,0.00120001,3701.7,3700.0,0.6336]
[1760696735105,0.00120001,3701.7,3699.9,1.728]
[1760696735106,0.00120001,3701.7,3700.1,0.02326208]
[1760696735310,0.00120001,3701.7,3700.2,3.01746575]
[1760696735509,0.00120001,3701.7,3700.6,2.70221422]
[1760696735708,0.00120001,3701.7,3700.7,0.02328646]
[1760696735879,0.00120001,3701.7,3700.9,2.70204544]
[1760696736072,0.00120001,3701.7,3701.0,0.02327975]
[1760696736374,0.00120001,3701.7,3701.6,2.70153447]
[1760696736570,0.00120001,3701.7,3701.6,3.33513447]
[1760696738099,0.00120001,3701.7,3701.6,3.35840626]
[1760696738612,0.00120001,3701.7,3701.6,8.00050626]
[1760696738905,0.00120001,3701.7,3701.6,13.58458347]
[1760696739073,0.00120001,3701.7,3701.6,7.97723447]
[1760696739274,0.00120001,3701.7,3701.6,10.79794247]
[1760696739476,0.00120001,3701.7,3701.6,11.61557647]
[1760696739678,0.00120001,3701.7,3701.6,11.10663447]
[1760696739876,0.00120001,3701.7,3701.6,8.12138347]
[1760696740115,0.00120001,3701.7,3701.6,8.19253447]
[1760696740327,0.00120001,3701.7,3701.1,1.728]
[1760696740528,0.00120001,3701.7,3700.9,2.995]
[1760696740902,0.00120001,3701.7,3701.4,2.7016267]
[1760696741104,0.00120001,3701.7,3701.2,2.70182643]
[1760696741412,0.00120001,3701.7,3700.9,1.728]
[1760696741737,0.00120001,3701.7,3701.4,3.33522506]
[1760696741928,0.00120001,3701.7,3701.5,2.70155158]
[1760696742129,0.00120001,3701.7,3701.6,0.6336]
[1760696742292,0.00120001,3701.7,3701.0,1.728]
[1760696742502,0.4649,3701.6,3699.5,0.0631]
[1760696742710,0.4649,3701.6,3700.2,0.02329016]
[1760696742914,0.4649,3701.5,3699.7,0.02329016]
[1760696743320,0.4649,3701.5,3699.8,1.728]
[1760696743520,0.4649,3701.5,3700.5,2.70233524]
[1760696743728,0.2309,3700.6,3699.1,0.0631]
[1760696743912,0.2309,3701.2,3700.5,2.70228818]
[1760696744108,0.2309,3701.2,3699.9,2.994]
[1760696744424,0.2309,3701.2,3700.0,0.02239006]
[1760696744628,0.2309,3701.2,3700.4,0.6336]
[1760696744796,0.2309,3701.2,3700.3,2.70243306]
[1760696744994,0.6958,3701.2,3699.8,2.994]
[1760696745195,0.6958,3701.2,3700.2,0.6336]
[1760696745401,0.2309,3701.2,3699.9,0.6336]
[1760696745646,0.4649,3701.1,3698.8,16.18999523]
[1760696745831,0.4649,3701.1,3699.3,1.728]
[1760696746034,0.4649,3701.0,3698.6,0.0631]
[1760696746236,2.70205852,3700.9,3698.4,1.2379]
[1760696746451,0.42393494,3700.7,3698.4,0.4649]
[1760696746734,2.70249488,3700.3,3698.5,0.6336]
[1760696746933,0.42393494,3700.7,3698.8,2.70351978]
[1760696746934,0.49868195,3700.2,3698.8,2.70351978]
[1760696747113,0.49868195,3700.2,3698.6,2.70372573]
[1760696747433,0.4649,3700.1,3698.5,0.02331822]
[1760696747744,0.4649,3700.1,3698.7,2.70358664]
[1760696747951,0.4649,3700.1,3698.8,0.02331633]
[1760696748156,0.42402845,3700.3,3699.0,2.3616]
[1760696748312,0.4649,3700.8,3699.4,0.6336]
[1760696748663,0.4649,3700.8,3698.7,0.0631]
[1760696748664,0.2309,3699.5,3698.4,0.4649]
[1760696748848,0.2309,3699.5,3696.2,0.05]
[1760696748849,0.2309,3698.5,3696.8,0.0631]
[1760696749083,0.2309,3698.5,3696.1,0.001]
[1760696749084,0.2309,3698.5,3696.3,0.0864512]
[1760696749229,0.4649,3698.4,3696.5,0.0243512]
[1760696749413,0.4649,3698.4,3696.9,0.02434927]
[1760696749619,0.4649,3698.4,3696.9,0.001]
[1760696749825,0.42424687,3698.2,3696.9,0.001]
[1760696750052,0.03380114,3698.1,3696.9,0.001]
[1760696750260,0.2309,3697.0,3696.9,0.001]
[1760696750748,0.6958,3697.0,3696.9,0.001]
[1760696751166,0.2309,3697.0,3696.9,0.001]
[1760696751366,0.1352,3697.1,3696.9,0.001]
[1760696751719,0.2309,3697.4,3696.9,0.001]
[1760696751915,0.1352,3697.4,3696.9,0.001]
[1760696752319,0.4663,3697.3,3696.9,0.001]
[1760696752551,0.4663,3697.3,3696.5,0.001]
[1760696753560,0.04716086,3697.7,3696.5,0.001]
[1760696753764,0.42429243,3698.0,3696.5,0.0651]
[1760696753972,0.42429243,3698.0,3696.8,0.6336]
[1760696754278,0.4663,3698.8,3697.4,2.70458463]
[1760696754457,0.4663,3698.8,3697.0,0.6336]
[1760696754625,0.04714299,3700.0,3697.0,0.02334505]
[1760696754626,0.4663,3698.6,3697.0,0.02334505]
[1760696754825,2.70298905,3699.7,3697.1,0.02334681]
[1760696754826,0.4663,3698.4,3697.1,0.02334681]
[1760696755053,0.4663,3698.4,3696.6,0.6336]
[1760696755391,0.4663,3698.3,3696.7,2.3616]
[1760696755703,2.934759,3698.5,3696.5,0.001]
[1760696755704,0.4663,3698.2,3696.5,0.001]
[1760696756166,0.4663,3698.2,3697.2,0.6336]
[1760696756359,0.4663,3698.2,3696.6,1.728]
[1760696756566,0.4663,3698.2,3696.9,0.6336]
[1760696756781,0.4663,3698.2,3697.0,2.70488113]
[1760696756996,0.4663,3698.2,3697.2,0.6336]
[1760696757493,0.4663,3698.2,3696.5,0.01038752]
[1760696757694,0.4663,3698.2,3696.6,2.72854331]
[1760696757870,0.4663,3698.2,3697.2,0.6336]
[1760696758073,0.4663,3698.3,3697.1,0.6336]
[1760696758383,0.4663,3698.3,3697.2,2.70472646]
[1760696758765,0.4663,3698.3,3697.2,0.02334618]
[1760696758965,0.4663,3698.3,3696.7,0.02334933]
[1760696759156,0.4663,3698.3,3696.5,0.001]
[1760696759361,1.728,3698.2,3696.5,0.001]
[1760696759562,0.42424189,3697.9,3696.5,0.001]
[1760696759959,0.04715159,3698.1,3696.8,2.7050284]
[1760696760262,0.04715159,3698.1,3696.9,0.6336]
[1760696760263,0.4663,3698.1,3696.9,0.6336]
[1760696760466,0.4663,3698.0,3696.5,0.001]
[1760696760880,0.2238,3697.9,3696.5,0.001]
[1760696761393,0.4325,3697.8,3696.5,0.6346]
[1760696761629,0.4325,3697.7,3696.5,0.001]
[1760696762368,0.1352,3697.0,3696.5,0.001]
[1760696762907,0.1352,3697.0,3696.5,2.852]
[1760696763113,0.4325,3697.7,3697.0,2.70487524]
[1760696763324,0.1352,3697.6,3696.9,0.1352]
[1760696763619,0.1352,3697.6,3696.5,0.001]
[1760696763620,0.4325,3697.6,3696.5,0.001]
[1760696763820,0.1352,3697.3,3696.7,0.1352]
[1760696764191,2.70437221,3697.8,3696.5,0.001]
[1760696764192,0.1352,3696.7,3696.5,0.001]
[1760696764422,0.4325,3697.2,3696.5,0.001]
[1760696764623,0.4325,3696.6,3696.5,0.001]
[1760696765136,0.1352,3696.5,3694.8,0.1352]
[1760696765335,0.03381668,3696.4,3694.0,0.0661]
[1760696765634,0.42434541,3697.3,3694.0,0.0661]
[1760696765635,0.4325,3696.3,3694.2,10.701552]
[1760696765934,2.70453887,3697.5,3694.1,2.7070193]
[1760696765935,0.42449841,3696.1,3694.1,2.7070193]
[1760696766134,0.42449841,3696.1,3694.0,0.0661]
[1760696766135,0.1352,3695.1,3694.4,0.1352]
[1760696766295,0.6467,3695.0,3693.7,2.70728718]
[1760696766487,0.1352,3694.7,3694.1,0.1352]
[1760696766687,0.6467,3695.0,3693.5,0.1352]
[1760696766688,0.1352,3694.2,3693.5,0.1352]
[1760696766887,0.2142,3695.0,3693.6,0.00895766]
[1760696767103,0.2142,3695.0,3692.9,0.0661]
[1760696767104,0.1352,3694.6,3693.9,0.1352]
[1760696767908,0.46633041,3694.9,3692.9,0.0661]
[1760696768110,0.1352,3694.2,3693.5,0.1352]
[1760696768750,0.2142,3693.6,3692.7,2.70803936]
[1760696768904,0.1352,3693.8,3693.2,0.1352]
[1760696769095,0.42465699,3694.6,3693.3,2.7075708]
[1760696769405,0.4325,3694.5,3692.8,2.70791835]
[1760696769603,0.1352,3693.9,3693.3,0.1352]
[1760696770028,0.1352,3693.9,3692.6,0.001]
[1760696770029,0.2142,3694.7,3692.9,0.0661]
[1760696770193,0.2142,3694.7,3693.8,0.1352]
[1760696770194,0.1352,3694.4,3693.8,0.1352]
[1760696770607,0.1352,3694.6,3694.0,0.1352]
[1760696771420,0.2142,3696.3,3693.7,0.6336]
[1760696771421,0.1352,3695.3,3693.7,0.6336]
[1760696771634,0.1352,3695.3,3694.6,2.70663402]
[1760696771847,0.1352,3695.3,3694.5,0.1352]
[1760696772044,0.42459832,3695.9,3695.2,0.1352]
[1760696772211,0.1352,3696.2,3695.2,0.1352]
[1760696772424,0.1352,3696.2,3695.6,0.1352]
[1760696772612,0.2142,3695.7,3695.3,0.1352]
[1760696772863,0.466324,3695.6,3692.8,0.0661]
[1760696773028,0.1352,3694.6,3692.0,16.18999523]
[1760696773365,0.03383133,3694.8,3693.2,0.1352]
[1760696773521,0.1352,3694.0,3693.1,2.70770029]
[1760696773714,0.1352,3694.0,3692.2,0.1322]
[1760696773715,0.1352,3694.0,3693.6,0.1352]
[1760696775072,0.42468355,3694.9,3693.0,2.996]
[1760696775357,2.70439323,3697.7,3692.8,1.728]
[1760696775358,0.2142,3695.8,3693.9,0.1352]
[1760696775668,0.1352,3696.1,3694.4,5.41359896]
[1760696775833,0.4325,3696.8,3695.7,2.70578774]
[1760696776154,0.4325,3696.8,3695.1,0.6336]
[1760696776155,0.2142,3697.0,3695.3,0.6336]
[1760696776311,0.2142,3697.5,3695.7,0.6336]
[1760696776520,0.6467,3698.0,3695.9,0.6336]
[1760696776711,0.42439454,3697.6,3696.0,2.7056277]
[1760696776912,0.42439454,3697.6,3695.9,2.9376]
[1760696776913,0.42439454,3697.6,3696.1,0.6997]
[1760696777113,0.85689454,3697.6,3696.2,0.6336]
[1760696777348,0.42439454,3697.6,3696.2,0.6336]
[1760696777555,0.2142,3698.0,3696.2,0.6336]
[1760696777737,0.2142,3698.0,3696.8,2.70503237]
[1760696777946,0.2142,3698.0,3696.4,0.6336]
[1760696778264,0.2142,3698.0,3696.8,2.7049982]
[1760696778460,0.4325,3698.3,3696.3,0.6336]
[1760696778662,0.6467,3699.0,3696.9,0.6336]
[1760696778836,1.07092181,3699.0,3697.4,0.6336]
[1760696779041,1.07092181,3699.0,3697.5,2.70451728]
[1760696779428,1.07092181,3699.0,3697.4,0.6336]
[1760696779632,0.63842181,3699.0,3697.5,1.728]
[1760696779825,0.42422181,3699.0,3698.1,2.70409129]
[1760696780171,0.2142,3700.0,3698.0,0.6336]
[1760696780326,0.2142,3700.0,3698.2,0.6336]
[1760696780529,0.4325,3700.2,3698.2,0.6336]
[1760696780751,0.04713861,3700.5,3699.2,2.70321735]
[1760696781062,0.4325,3700.4,3698.7,0.6336]
[1760696781233,0.4325,3700.4,3698.9,0.6336]
[1760696781433,0.2142,3701.0,3699.1,2.70336027]
[1760696781434,0.6555,3701.0,3699.1,2.70336027]
[1760696781674,0.6555,3701.0,3699.2,0.6336]
[1760696781960,0.2142,3702.0,3699.2,0.6336]
[1760696781961,0.6745,3701.6,3699.4,0.6336]
[1760696782149,0.6745,3701.6,3699.6,1.728]
[1760696782348,0.6745,3701.6,3700.4,0.6336]
[1760696782556,0.6745,3701.6,3699.4,2.70314104]
[1760696782754,0.4413,3701.4,3699.4,2.70311392]
[1760696783059,0.4413,3701.4,3699.6,0.6336]
[1760696783060,2.70191174,3701.1,3699.6,0.6336]
[1760696783268,0.4413,3701.0,3699.3,0.6336]
[1760696783443,0.04711293,3701.1,3700.0,0.6336]
[1760696783638,0.04711293,3701.1,3699.2,2.70323223]
[1760696783639,0.4413,3701.0,3698.4,0.0661]
[1760696783838,0.4413,3701.0,3698.9,13.778745]
[1760696784039,0.42395112,3701.2,3699.7,0.6336]
[1760696784236,0.42395112,3701.2,3699.5,0.6336]
[1760696784432,0.42395112,3701.2,3700.1,0.6336]
[1760696784650,0.4413,3701.1,3699.5,1.728]
[1760696784839,0.42395112,3701.2,3698.8,2.70356929]
[1760696785048,0.42395112,3701.2,3698.1,18.89408067]
[1760696785049,2.70214005,3700.8,3698.5,9.33020284]
[1760696785250,0.70827739,3700.7,3698.3,2.993]
[1760696785459,0.4413,3700.6,3698.3,2.993]
[1760696785662,0.89908045,3700.5,3698.3,2.993]
[1760696785839,0.1344,3699.8,3699.1,0.1344]
[1760696786175,0.1344,3700.2,3699.5,0.1344]
[1760696786347,0.4413,3700.3,3698.2,2.70399015]
[1760696786547,0.2332,3700.7,3697.9,1.728]
[1760696786548,0.47508195,3700.2,3697.9,1.728]
[1760696786745,0.1344,3699.2,3698.6,0.1344]
[1760696787074,0.1344,3699.2,3697.3,2.992]
[1760696787075,0.2332,3698.7,3694.9,2.70639683]
[1760696787263,0.2332,3698.7,3696.6,8.387157]
[1760696787463,0.6745,3698.7,3696.5,0.0661]
[1760696787663,0.6745,3698.7,3696.6,3.885082]
[1760696787982,0.6745,3698.7,3696.5,2.70526173]
[1760696787983,0.47509657,3698.6,3696.5,2.70526173]
[1760696788184,0.4413,3698.6,3697.5,2.70446177]
[1760696788477,0.4413,3698.6,3697.5,2.70452388]
[1760696788790,0.42420014,3699.1,3697.5,0.6336]
[1760696788943,0.04713738,3699.8,3697.7,30.0]
[1760696789146,0.4413,3700.9,3698.5,0.6336]
[1760696789452,0.4413,3700.9,3698.3,16.83985]
[1760696789453,0.04711947,3701.3,3699.7,0.6336]
[1760696789682,0.4239565,3701.0,3698.9,2.992]
[1760696789978,0.6745,3700.9,3699.7,2.70288956]
[1760696790178,0.4239565,3701.0,3699.7,0.6336]
[1760696790494,0.2332,3701.6,3700.5,0.6336]
[1760696790849,0.0337637,3702.2,3700.6,12.107765]
[1760696791163,0.002,3704.8,3701.6,5.06313447]
[1760696791164,0.04709734,3703.7,3701.6,5.06313447]
[1760696791377,0.2332,3703.6,3701.6,5.06313447]
[1760696791585,0.2332,3703.6,3701.6,15.93214426]
[1760696791748,0.2332,3703.6,3701.6,11.20806847]
[1760696792098,0.4413,3703.2,3701.6,8.05413447]
[1760696792589,0.2332,3703.6,3701.6,21.14879647]
[1760696792896,0.2332,3703.6,3701.6,18.48886147]
[1760696793101,0.2332,3703.6,3701.6,10.11923447]
[1760696793598,0.2332,3703.6,3701.6,15.47136447]
[1760696793796,0.2332,3703.6,3701.6,13.98623447]
[1760696793997,0.2332,3703.6,3701.6,12.61723447]
[1760696794295,0.00040001,3701.7,3701.6,12.61723447]
[1760696794675,0.00040001,3701.7,3701.6,14.64627647]
[1760696795797,0.00040001,3701.7,3701.6,10.58558947]
[1760696795975,0.00040001,3701.7,3701.6,8.05213447]
[1760696796179,0.00040001,3701.7,3701.6,14.80703347]
[1760696796388,0.00040001,3701.7,3701.6,14.43064547]
[1760696796572,0.00040001,3701.7,3701.6,8.11823447]
[1760696796768,0.00040001,3701.7,3701.6,11.18927247]
[1760696797183,0.00040001,3701.7,3701.6,11.32367247]
[1760696797398,0.00040001,3701.7,3701.6,8.33467247]
[1760696797704,0.00040001,3701.7,3701.6,8.25163447]
[1760696797998,0.00040001,3701.7,3701.6,13.52184847]
[1760696798196,0.00040001,3701.7,3701.6,11.97712247]
[1760696798398,0.00040001,3701.7,3701.6,10.47912247]
[1760696798900,0.00040001,3701.7,3701.6,11.27404347]
[1760696799102,0.20177489,3702.8,3702.5,0.6336]
[1760696799278,0.4413,3703.9,3703.2,2.70036255]
[1760696799478,0.2332,3704.3,3703.7,2.69994234]
[1760696799805,0.2332,3704.3,3703.9,2.6998569]
[1760696800398,0.2332,3704.3,3690.3,0.071]
[1760696800399,0.6745,3704.0,3701.8,2.70135926]
[1760696800612,0.4413,3703.9,3702.1,0.0232525]
[1760696800907,0.4413,3703.9,3702.2,1.728]
[1760696801099,0.4413,3703.9,3702.4,4.520651]
[1760696801300,0.2332,3704.0,3703.0,0.6336]
[1760696801610,0.2332,3704.0,3701.9,1.728]
[1760696801611,0.6745,3704.0,3701.9,1.728]
[1760696801811,0.04827533,3704.4,3702.6,30.0]
[1760696802112,0.04827533,3704.4,3704.3,3.33316536]
[1760696802314,0.00120001,3704.4,3704.3,11.89820092]
[1760696802612,0.00120001,3704.4,3704.3,21.34961536]
[1760696802812,0.00120001,3704.4,3704.3,17.32078836]
[1760696803013,0.00120001,3704.4,3704.3,12.26785036]
[1760696803520,0.00120001,3704.4,3704.3,19.65191436]
[1760696803711,0.00120001,3704.4,3704.3,19.06663336]
[1760696803916,0.00120001,3704.4,3704.3,18.96913336]
[1760696804115,0.00120001,3704.4,3704.3,5.06116536]
[1760696804414,0.00120001,3704.4,3704.3,11.82691492]
[1760696804613,0.00120001,3704.4,3704.3,8.04616536]
[1760696804780,0.00120001,3704.4,3704.3,5.06116536]
[1760696804988,0.00120001,3704.4,3704.3,11.69546536]
[1760696805182,0.00120001,3704.4,3704.3,11.06186536]
[1760696805482,0.00120001,3704.4,3704.3,11.69546536]
[1760696805683,0.00120001,3704.4,3704.3,13.92607436]
[1760696805906,0.00120001,3704.4,3704.3,5.06116536]
[1760696806080,0.00120001,3704.4,3704.3,8.06938792]
[1760696806293,0.00120001,3704.4,3704.3,2.3616]
[1760696806494,0.44250001,3704.4,3704.0,2.984]
[1760696806793,0.4413,3704.3,3703.3,2.70029433]
[1760696806994,0.00120001,3704.4,3703.4,2.984]
[1760696807195,0.00120001,3704.4,3704.3,2.69956536]
[1760696807500,0.00120001,3704.4,3702.5,0.0975]
[1760696807682,0.00120001,3704.4,3704.3,2.69956536]
[1760696807883,0.4413,3704.3,3701.8,0.2714]
[1760696808089,0.4413,3704.3,3702.6,2.70077672]
[1760696808090,0.03374547,3704.2,3702.6,2.70077672]
[1760696808286,0.4413,3704.1,3702.1,0.02324772]
[1760696808526,0.4413,3704.1,3701.9,1.661]
[1760696808527,0.2669473,3704.0,3701.9,1.661]
[1760696808729,1.09810039,3703.9,3702.1,0.02325131]
[1760696808887,1.09810039,3703.9,3702.2,2.70109664]
[1760696808888,0.03374912,3703.8,3702.2,2.70109664]
[1760696809090,0.2332,3702.3,3700.6,0.0975]
[1760696809321,0.4413,3702.2,3702.1,2.7011696]
[1760696809525,0.4413,3702.2,3702.1,0.1344]
[1760696809828,0.4413,3702.2,3701.3,0.681]
[1760696810133,0.4413,3702.2,3700.7,0.2714]
[1760696810134,0.4413,3702.1,3700.7,0.2714]
[1760696810331,0.2332,3700.8,3699.3,0.0975]
[1760696810623,0.2332,3702.3,3699.3,0.0975]
[1760696810624,0.4413,3701.3,3699.6,2.70299491]
[1760696810823,0.4413,3701.3,3701.1,2.7018727]
[1760696810993,0.4413,3701.3,3700.8,2.70204565]
[1760696811195,0.4413,3701.2,3700.4,2.70236692]
[1760696811630,0.2332,3701.8,3699.3,2.80070591]
[1760696811631,0.4328,3701.1,3699.8,2.983]
[1760696811930,0.2332,3701.8,3700.0,2.7027027]
[1760696812090,0.4328,3701.1,3699.9,1.728]
[1760696812296,0.4328,3701.1,3700.3,2.70242017]
[1760696812542,0.4328,3701.1,3699.3,0.0975]
[1760696812543,0.2332,3701.8,3699.3,0.0975]
[1760696812697,0.4328,3701.0,3699.4,3.00629879]
[1760696812895,0.03376826,3701.7,3699.9,2.70276707]
[1760696812896,0.4328,3700.9,3699.9,2.70276707]
[1760696813114,0.4328,3700.9,3699.5,1.728]
[1760696813115,0.4328,3700.9,3700.1,2.70261376]
[1760696813431,0.4328,3700.9,3700.2,0.02329435]
[1760696813603,0.4328,3700.9,3699.5,0.02329816]
[1760696813808,0.4328,3700.9,3698.8,2.80106764]
[1760696814009,0.4328,3700.8,3699.0,2.70343068]
[1760696814209,0.4328,3700.7,3698.4,0.0975]
[1760696814406,0.0337783,3700.6,3698.5,3.005]
[1760696814608,0.4328,3700.7,3698.8,1.728]
[1760696814804,0.4328,3700.7,3699.9,2.7027563]
[1760696815116,0.4328,3700.7,3699.2,2.70328719]
[1760696815117,0.4328,3700.7,3699.6,0.6336]
[1760696815316,0.4328,3700.7,3700.2,2.70250664]
[1760696815547,0.42392554,3701.0,3699.4,0.6336]
[1760696815548,0.03376918,3701.6,3699.6,0.6336]
[1760696815831,0.85669632,3701.5,3700.5,2.70233752]
[1760696816020,0.85669632,3701.5,3700.6,2.70222417]
[1760696816221,0.85669632,3701.5,3699.2,2.70328719]
[1760696816222,0.85669632,3701.5,3700.2,0.6336]
[1760696816400,0.85669632,3701.5,3700.9,2.70201707]
[1760696816597,0.2332,3701.8,3701.3,2.70172388]
[1760696816797,0.4328,3701.7,3700.6,2.70226449]
[1760696817004,0.2332,3701.8,3700.8,0.6336]
[1760696817244,0.2332,3701.8,3701.5,2.70154364]
[1760696817541,0.2332,3701.8,3701.1,0.6336]
[1760696817840,0.46656826,3701.7,3699.8,0.001]
[1760696818007,0.46576826,3701.7,3700.2,2.7025019]
[1760696818333,0.03376826,3701.7,3700.2,2.7025019]
[1760696818511,0.03376826,3701.7,3700.0,0.6336]
[1760696818703,0.42387235,3701.6,3700.0,0.6336]
[1760696819032,0.03377009,3701.5,3700.0,2.70269783]
[1760696819247,0.03377009,3701.5,3700.1,2.70262424]
[1760696819436,0.03377009,3701.5,3700.2,2.70254927]
[1760696819638,0.03377009,3701.5,3701.4,2.70168044]
[1760696819843,0.42387235,3701.6,3701.5,17.26147166]
[1760696820049,0.42387235,3701.6,3701.5,5.06320745]
[1760696820350,0.2233,3701.9,3701.2,1.728]
[1760696820546,0.42374888,3702.4,3700.5,12.012932]
[1760696820708,0.4328,3702.6,3700.7,2.3616]
[1760696820910,0.002,3702.8,3701.2,2.3616]
[1760696821205,0.4332,3702.7,3701.6,2.70153447]
[1760696821404,0.4332,3702.7,3701.5,0.6336]
[1760696821603,0.002,3702.8,3701.6,1.75126067]
[1760696821847,0.002,3702.8,3701.2,3.6606]
[1760696821848,0.002,3702.8,3702.2,1.728]
[1760696822043,0.4332,3702.7,3702.0,2.70123726]
[1760696822247,0.002,3702.8,3702.5,2.70085165]
[1760696822450,0.002,3702.8,3701.6,2.70153447]
[1760696822743,0.002,3702.8,3702.7,5.16063189]
[1760696822929,0.002,3702.8,3702.7,4.42873189]
[1760696823520,0.002,3702.8,3702.1,2.70115408]
[1760696823745,0.4352,3702.8,3702.4,1.728]
[1760696823919,0.4352,3702.8,3702.1,2.7011696]
[1760696824124,0.4352,3702.8,3701.6,3.4333844]
[1760696824125,0.002,3702.8,3701.8,1.728]
[1760696824320,0.002,3702.8,3700.6,0.0983]
[1760696824321,0.4332,3702.7,3700.6,0.0983]
[1760696824561,0.2195,3701.9,3700.7,2.70219147]
[1760696824735,0.4332,3701.8,3701.1,2.70183513]
[1760696824921,0.4332,3701.8,3700.1,0.0983]
[1760696825122,0.03376826,3701.7,3700.4,2.70235]
[1760696825350,0.03376826,3701.7,3699.3,0.0983]
[1760696825351,0.4332,3701.6,3700.6,2.70223652]
[1760696825661,0.46697009,3701.5,3699.9,1.728]
[1760696825864,0.4332,3701.4,3700.4,2.70239796]
[1760696826159,0.4332,3701.4,3700.5,2.70228635]
[1760696826363,0.4332,3701.4,3699.8,1.75011091]
[1760696826656,0.46697191,3701.3,3699.8,2.7038421]
[1760696826862,0.42385946,3701.7,3699.8,2.7038421]
[1760696826863,0.42385946,3701.7,3699.9,0.0983]
[1760696827025,0.42385946,3701.7,3700.8,2.70205683]
[1760696827226,0.4332,3702.5,3701.6,2.7015164]
[1760696827470,0.2195,3702.3,3701.7,0.00710893]
[1760696827674,0.2195,3702.3,3700.4,0.0983]
[1760696827675,0.2195,3702.3,3700.5,0.02327452]
[1760696827964,0.2195,3701.8,3700.2,0.6336]
[1760696828134,0.4332,3701.7,3700.2,2.3616]
[1760696828344,0.2195,3702.3,3700.2,2.3616]
[1760696828583,0.4332,3702.3,3701.0,1.728]
[1760696828862,0.4332,3702.3,3700.3,0.0983]
[1760696829063,0.42375189,3702.4,3700.0,1.728]
[1760696829229,0.2332,3703.9,3702.7,2.70073189]
[1760696829230,0.2195,3703.7,3702.7,2.70073189]
[1760696829430,0.2195,3703.7,3700.0,0.25831794]
[1760696829723,0.2195,3703.7,3699.6,16.044457]
[1760696829724,0.4352,3702.8,3701.1,1.728]
[1760696829961,0.002,3702.8,3701.5,1.728]
[1760696830281,0.002,3702.8,3701.1,1.732]
[1760696830282,0.002,3702.8,3702.7,3.33433189]
[1760696830435,0.002,3702.8,3702.7,3.46873189]
[1760696830659,0.002,3702.8,3702.7,2.83513189]
[1760696831683,0.6547,3702.8,3702.3,0.1344]
[1760696831890,0.44370226,3702.7,3701.8,2.70135573]
[1760696832061,0.44370226,3702.7,3701.4,0.1344]
[1760696832258,0.44370226,3702.7,3699.9,0.0983]
[1760696832491,0.44370226,3702.7,3698.4,1.217]
[1760696832492,0.2195,3701.5,3700.2,0.1344]
[1760696832699,0.44370226,3701.4,3700.0,0.1344]
[1760696832856,0.4332,3701.4,3700.0,0.1344]
[1760696833058,0.01050226,3701.3,3700.0,0.1344]
[1760696833258,0.4332,3701.2,3699.8,0.001]
[1760696833465,0.2195,3701.5,3699.8,1.729]
[1760696833713,0.2195,3699.9,3699.8,0.001]